bitfinex/quotes_BTCUSD_20260311
["timestamp","ask_amount","ask_price","bid_price","bid_amount"]
[1773189207176,0.07152871,69902.0,69891.0,0.07153996]
[1773189207587,0.10777151,69902.0,69891.0,0.07153996]
[1773189207986,0.07152871,69902.0,69891.0,0.07153996]
[1773189208190,0.0362428,69901.0,69891.0,0.07153996]
[1773189208373,0.0362428,69901.0,69890.0,0.07154097]
[1773189209310,0.10777355,69900.0,69889.0,0.0002]
[1773189209808,0.0362428,69899.0,69889.0,0.0002]
[1773189212722,0.0715328,69898.0,69889.0,0.0002]
[1773189213046,0.00144,69897.0,69889.0,0.0002]
[1773189215225,0.0729742,69897.0,69889.0,0.0002]
[1773189215629,0.00144,69897.0,69889.0,0.0002]
[1773189215858,0.07297401,69897.0,69889.0,0.0002]
[1773189218186,0.00144,69897.0,69889.0,0.0002]
[1773189218600,0.07297385,69897.0,69889.0,0.0002]
[1773189219105,0.0362428,69896.0,69889.0,0.0002]
[1773189219309,0.07297385,69897.0,69889.0,0.0002]
[1773189223863,0.07174218,69909.0,69890.0,0.03943766]
[1773189224044,0.00144,69907.0,69892.0,0.03943766]
[1773189224462,0.07182766,69909.0,69892.0,0.03943766]
[1773189224763,0.07173913,69912.0,69892.0,0.03943766]
[1773189224963,0.00144,69911.0,69892.0,0.03943766]
[1773189225165,0.00144,69911.0,69892.0,0.03966122]
[1773189225166,0.0376828,69911.0,69892.0,0.03966122]
[1773189225582,0.00022001,69906.0,69892.0,0.03966122]
[1773189226134,0.00022001,69906.0,69893.0,0.07153792]
[1773189226334,0.00022001,69906.0,69894.0,0.03943766]
[1773189228399,0.00022001,69906.0,69895.0,0.07153587]
[1773189229147,0.00144,69909.0,69896.0,0.04074456]
[1773189229349,0.00144,69910.0,69896.0,0.04074456]
[1773189229504,0.03908507,69916.0,69898.0,0.0386968]
[1773189229710,0.07151695,69914.0,69898.0,0.0386968]
[1773189229906,0.00144,69911.0,69898.0,0.0386968]
[1773189230119,0.00022001,69912.0,69898.0,0.0386968]
[1773189230707,0.00022001,69912.0,69900.0,0.0386968]
[1773189232027,0.00022001,69912.0,69899.0,0.07153178]
[1773189232028,0.04113928,69911.0,69899.0,0.07153178]
[1773189233532,0.1126598,69910.0,69899.0,0.07153178]
[1773189233842,0.07152052,69910.0,69899.0,0.07153178]
[1773189234038,0.04113928,69909.0,69899.0,0.07153178]
[1773189234591,0.04113928,69909.0,69892.0,0.11060952]
[1773189234592,0.04113928,69909.0,69893.0,0.07153792]
[1773189234761,0.04113928,69909.0,69889.0,0.07174154]
[1773189235082,0.00144,69908.0,69889.0,0.07174196]
[1773189235238,0.00144,69908.0,69882.0,0.0002]
[1773189235239,0.04113928,69907.0,69882.0,0.0002]
[1773189235644,0.04113928,69905.0,69882.0,0.0002]
[1773189237061,0.04113928,69903.0,69882.0,0.0002]
[1773189237633,0.07152871,69902.0,69882.0,0.0002]
[1773189237917,0.04113928,69901.0,69882.0,0.0002]
[1773189238503,0.04113928,69901.0,69883.0,0.0004]
[1773189239405,0.00144,69900.0,69883.0,0.0004]
[1773189239730,0.04113928,69899.0,69883.0,0.0004]
[1773189240038,0.0729728,69898.0,69884.0,0.07154713]
[1773189240208,0.11267208,69898.0,69884.0,0.07154713]
[1773189240385,0.00144,69897.0,69884.0,0.11024393]
[1773189240786,0.0715328,69898.0,69884.0,0.11024393]
[1773189240995,0.00144,69897.0,69884.0,0.11024393]
[1773189241720,0.00144,69897.0,69883.0,0.07214815]
[1773189241928,0.11267515,69895.0,69883.0,0.07214815]
[1773189242291,0.04113928,69894.0,69883.0,0.07214815]
[1773189242926,0.07153587,69895.0,69883.0,0.07214815]
[1773189244637,0.07153587,69895.0,69883.0,0.11084495]
[1773189245002,0.07153587,69896.0,69883.0,0.07214815]
[1773189245220,0.07153587,69896.0,69884.0,0.0386968]
[1773189245221,0.00144,69895.0,69884.0,0.0386968]
[1773189246117,0.00144,69895.0,69883.0,0.07214815]
[1773189246719,0.07153689,69894.0,69883.0,0.07214815]
[1773189247262,0.04113928,69893.0,69883.0,0.0006]
[1773189247870,0.04113928,69893.0,69883.0,0.0721479]
[1773189248286,0.07153689,69894.0,69883.0,0.0721479]
[1773189248489,0.00144,69893.0,69884.0,0.0386968]
[1773189248802,0.00144,69896.0,69886.0,0.0386968]
[1773189249381,0.00144,69897.0,69886.0,0.0386968]
[1773189249570,0.00144,69900.0,69886.0,0.0386968]
[1773189249768,0.07174537,69906.0,69886.0,0.0386968]
[1773189249769,0.00022001,69906.0,69886.0,0.0386968]
[1773189250028,0.07152258,69908.0,69886.0,0.0386968]
[1773189250379,0.07189629,69909.0,69886.0,0.0386968]
[1773189250615,0.00022001,69906.0,69886.0,0.0386968]
[1773189250821,0.00022001,69906.0,69888.0,0.0386968]
[1773189250822,0.07152564,69905.0,69888.0,0.0386968]
[1773189251025,0.07152564,69905.0,69890.0,0.0386968]
[1773189252831,0.04113928,69910.0,69890.0,0.0386968]
[1773189252832,0.00562,69928.0,69890.0,0.0386968]
[1773189253149,0.00562,69928.0,69890.0,0.00037428]
[1773189253150,0.04113928,69917.0,69890.0,0.00037428]
[1773189253350,0.04113928,69917.0,69890.0,0.07191495]
[1773189254097,0.07151247,69918.0,69891.0,0.0401368]
[1773189254274,0.04113928,69915.0,69891.0,0.0401368]
[1773189255769,0.07151643,69914.0,69892.0,0.07153894]
[1773189256091,0.04113928,69913.0,69892.0,0.07153894]
[1773189256331,0.04113928,69913.0,69891.0,0.07297894]
[1773189256332,0.04113928,69913.0,69891.0,0.00144]
[1773189257000,0.04113928,69913.0,69890.0,0.07191453]
[1773189257661,0.04213928,69913.0,69890.0,0.07191453]
[1773189257831,0.04113928,69913.0,69890.0,0.07191453]
[1773189258042,0.07151848,69912.0,69890.0,0.07191453]
[1773189258290,0.04113928,69911.0,69890.0,0.07191453]
[1773189258441,0.00144,69910.0,69890.0,0.07191453]
[1773189258652,0.04113928,69909.0,69890.0,0.07191453]
[1773189259774,0.04113928,69909.0,69890.0,0.07191511]
[1773189260211,0.04007916,69907.0,69890.0,0.11445632]
[1773189260376,0.04007916,69907.0,69890.0,0.07191511]
[1773189260591,0.04007916,69907.0,69890.0,0.00037428]
[1773189260783,0.04007916,69907.0,69890.0,0.07191501]
[1773189262759,0.07152461,69906.0,69890.0,0.07191501]
[1773189262916,0.00144,69907.0,69891.0,0.04254121]
[1773189263135,0.00244,69907.0,69891.0,0.04254121]
[1773189263457,0.00144,69907.0,69891.0,0.04254121]
[1773189263756,0.00022001,69911.0,69893.0,0.04254121]
[1773189264955,0.00122001,69911.0,69895.0,0.04254121]
[1773189265155,0.07273985,69911.0,69895.0,0.04254121]
[1773189265314,0.04007916,69910.0,69895.0,0.04254121]
[1773189265897,0.04007916,69910.0,69894.0,0.07153689]
[1773189266099,0.04007916,69910.0,69895.0,0.00144]
[1773189267001,0.04007916,69910.0,69894.0,0.00144]
[1773189267002,0.11508438,69909.0,69894.0,0.00144]
[1773189267164,0.04500284,69908.0,69894.0,0.00144]
[1773189267346,0.04500284,69908.0,69892.0,0.04400834]
[1773189267545,0.04500284,69908.0,69892.0,0.00144]
[1773189267970,0.04356284,69908.0,69892.0,0.00144]
[1773189268179,0.00144,69907.0,69893.0,0.04400834]
[1773189269177,0.07174062,69910.0,69894.0,0.07153689]
[1773189269392,0.00144,69908.0,69895.0,0.04400834]
[1773189270529,0.00022001,69910.0,69895.0,0.04400834]
[1773189270728,0.04356284,69909.0,69895.0,0.04400834]
[1773189271028,0.04356284,69909.0,69894.0,0.07153689]
[1773189271232,0.07152257,69908.0,69894.0,0.07153689]
[1773189271432,0.07152257,69908.0,69895.0,0.04400834]
[1773189273336,0.07152257,69908.0,69896.0,0.07153485]
[1773189273557,0.07152257,69908.0,69893.0,0.07153779]
[1773189273764,0.04356284,69907.0,69892.0,0.07297792]
[1773189274121,0.07152257,69908.0,69891.0,0.0715394]
[1773189274122,0.04356284,69905.0,69893.0,0.00144]
[1773189274883,0.04356284,69905.0,69891.0,0.07153927]
[1773189275474,0.07152666,69904.0,69891.0,0.07153927]
[1773189275656,0.04356284,69903.0,69891.0,0.07153927]
[1773189276860,0.04456284,69903.0,69891.0,0.07153927]
[1773189277810,0.001,69903.0,69891.0,0.07153927]
[1773189278164,0.001,69903.0,69892.0,0.04400834]
[1773189278342,0.07296487,69906.0,69892.0,0.04400834]
[1773189278739,0.07152487,69906.0,69892.0,0.04400834]
[1773189278946,0.00144,69905.0,69892.0,0.04400834]
[1773189279494,0.0718717,69910.0,69892.0,0.04544834]
[1773189279692,0.00144,69907.0,69894.0,0.04400834]
[1773189280041,0.07152261,69908.0,69894.0,0.04400834]
[1773189280271,0.04356284,69907.0,69893.0,0.07153792]
[1773189281730,0.07296261,69908.0,69893.0,0.07153792]
[1773189281905,0.07296261,69908.0,69894.0,0.04400834]
[1773189282113,0.04356284,69907.0,69893.0,0.07153792]
[1773189282624,0.00144,69906.0,69893.0,0.07153792]
[1773189282836,0.04500284,69906.0,69893.0,0.07153792]
[1773189284013,0.11652839,69906.0,69893.0,0.07153792]
[1773189284776,0.11508839,69906.0,69893.0,0.07153792]
[1773189284978,0.00144,69905.0,69894.0,0.04400834]
[1773189286155,0.07152354,69908.0,69895.0,0.07153587]
[1773189286293,0.00144,69907.0,69895.0,0.07153587]
[1773189286954,0.00144,69906.0,69895.0,0.07153587]
[1773189287165,0.00035081,69910.0,69896.0,0.04400834]
[1773189287166,0.00144,69910.0,69896.0,0.04400834]
[1773189287593,0.00144,69911.0,69896.0,0.04400834]
[1773189287795,0.04356284,69915.0,69896.0,0.04400834]
[1773189287977,0.07357357,69917.0,69896.0,0.04400834]
[1773189288175,0.07357357,69917.0,69897.0,0.07153382]
[1773189288332,0.07357357,69917.0,69898.0,0.04244489]
[1773189288532,0.04232131,69916.0,69898.0,0.04244489]
[1773189288730,0.04376131,69916.0,69898.0,0.04244489]
[1773189291260,0.07151541,69915.0,69899.0,0.07153178]
[1773189291411,0.03965561,69914.0,69899.0,0.07153178]
[1773189291728,0.03965561,69914.0,69892.0,0.21427062]
[1773189291729,0.03965561,69914.0,69895.0,0.0731753]
[1773189292308,0.00144,69913.0,69896.0,0.04295322]
[1773189292508,0.04109561,69913.0,69896.0,0.04295322]
[1773189292710,0.03965561,69913.0,69896.0,0.04295322]
[1773189293035,0.03965561,69911.0,69896.0,0.04295322]
[1773189293401,0.07152052,69910.0,69895.0,0.0731753]
[1773189293602,0.03965561,69909.0,69895.0,0.0731753]
[1773189295668,0.03965561,69907.0,69895.0,0.0731753]
[1773189296094,0.00144,69906.0,69895.0,0.0731753]
[1773189296637,0.00144,69906.0,69895.0,0.11612852]
[1773189297386,0.07152102,69910.0,69896.0,0.04295322]
[1773189297752,0.07152257,69908.0,69897.0,0.07153382]
[1773189297952,0.07296234,69909.0,69897.0,0.07153382]
[1773189298483,0.00022001,69908.0,69897.0,0.07153382]
[1773189298695,0.07173297,69918.0,69899.0,0.04295322]
[1773189298866,0.00022001,69915.0,69899.0,0.04295322]
[1773189299761,0.00022001,69915.0,69901.0,0.04295322]
[1773189299999,0.00022001,69915.0,69903.0,0.04295322]
[1773189300658,0.00022001,69918.0,69903.0,0.04295322]
[1773189301023,0.07173261,69918.0,69903.0,0.04295322]
[1773189301229,0.05458837,69913.0,69897.0,0.00144]
[1773189301433,0.03965561,69906.0,69890.0,0.07211478]
[1773189301633,0.03965561,69904.0,69890.0,0.07211478]
[1773189301843,0.11118227,69904.0,69903.0,0.001]
[1773189302138,0.11118227,69904.0,69894.0,0.07153646]
[1773189302139,0.03965561,69903.0,69894.0,0.07153646]
[1773189303109,0.03965561,69903.0,69890.0,0.07211489]
[1773189303379,0.03965561,69903.0,69889.0,0.07154167]
[1773189303380,0.05458837,69900.0,69881.0,0.07155016]
[1773189303586,0.04109561,69899.0,69881.0,0.07155019]
[1773189303885,0.03965561,69897.0,69876.0,0.07173003]
[1773189304634,0.00144,69896.0,69876.0,0.07173003]
[1773189304835,0.03965561,69894.0,69876.0,0.07173003]
[1773189305339,0.00144,69893.0,69876.0,0.07173003]
[1773189305540,0.0715328,69898.0,69876.0,0.07173003]
[1773189305541,0.03965561,69892.0,69876.0,0.07173003]
[1773189305749,0.03965561,69891.0,69876.0,0.07173003]
[1773189305983,0.001,69897.0,69876.0,0.07173003]
[1773189305984,0.03965561,69888.0,69886.0,0.0002]
[1773189306183,0.00144,69888.0,69886.0,0.0002]
[1773189306709,0.07154201,69889.0,69886.0,0.0002]
[1773189306917,0.00144,69888.0,69886.0,0.0002]
[1773189307470,0.04109561,69888.0,69886.0,0.0002]
[1773189308196,0.11119967,69887.0,69886.0,0.0002]
[1773189310097,0.07398334,69888.0,69879.0,0.0002]
[1773189310300,0.03965561,69887.0,69879.0,0.0002]
[1773189310706,0.04065561,69887.0,69879.0,0.0002]
[1773189310982,0.03965561,69887.0,69879.0,0.0002]
[1773189311406,0.03234816,69923.0,69880.0,0.04295322]
[1773189311407,0.03965561,69896.0,69880.0,0.04295322]
[1773189311654,0.00144,69895.0,69880.0,0.04295322]
[1773189312029,0.00144,69894.0,69880.0,0.04295322]
[1773189312239,0.07153792,69893.0,69881.0,0.0715502]
[1773189312623,0.07297792,69893.0,69881.0,0.0715502]
[1773189314452,0.00144,69896.0,69882.0,0.04295322]
[1773189314655,0.03965561,69896.0,69880.0,0.0729902]
[1773189314980,0.03965561,69896.0,69881.0,0.00144]
[1773189316382,0.07153502,69896.0,69883.0,0.04295322]
[1773189316587,0.00144,69895.0,69883.0,0.04295322]
[1773189317112,0.03965561,69894.0,69882.0,0.07154918]
[1773189317807,0.07153502,69896.0,69882.0,0.1145024]
[1773189317971,0.00144,69894.0,69882.0,0.1145024]
[1773189318726,0.07153502,69896.0,69883.0,0.04295322]
[1773189318727,0.07153673,69895.0,69883.0,0.04295322]
[1773189318929,0.07297673,69895.0,69883.0,0.04295322]
[1773189319334,0.0715328,69898.0,69883.0,0.04295322]
[1773189319509,0.00144,69895.0,69883.0,0.04295322]
[1773189320111,0.001,69894.0,69883.0,0.04295322]
[1773189320428,0.00144,69896.0,69883.0,0.04295322]
[1773189320929,0.00144,69896.0,69884.0,0.07154713]
[1773189321232,0.07297542,69896.0,69884.0,0.07154713]
[1773189321410,0.07257542,69896.0,69884.0,0.07154713]
[1773189322128,0.00104,69896.0,69884.0,0.07154713]
[1773189322344,0.07152369,69907.0,69885.0,0.04057821]
[1773189322545,0.00144,69905.0,69885.0,0.04095249]
[1773189322893,0.00144,69904.0,69886.0,0.07154508]
[1773189323096,0.00144,69904.0,69888.0,0.04057821]
[1773189323529,0.04404324,69903.0,69888.0,0.04057821]
[1773189323847,0.07151581,69915.0,69888.0,0.04057821]
[1773189324010,0.04404324,69908.0,69888.0,0.04057821]
[1773189325211,0.04404324,69906.0,69889.0,0.11356022]
[1773189325859,0.04404324,69906.0,69889.0,0.11212022]
[1773189326094,0.04404324,69906.0,69890.0,0.00144]
[1773189326276,0.00144,69905.0,69891.0,0.00144]
[1773189326480,0.04404324,69904.0,69891.0,0.00144]
[1773189326677,0.03404324,69904.0,69889.0,0.07154201]
[1773189326882,0.03404324,69904.0,69890.0,0.04201821]
[1773189327289,0.10556999,69904.0,69891.0,0.07153996]
[1773189327693,0.00144,69907.0,69892.0,0.04057821]
[1773189328100,0.001,69904.0,69892.0,0.04057821]
[1773189328460,0.00144,69907.0,69892.0,0.04057821]
[1773189328990,0.0016148,69910.0,69898.0,0.04057821]
[1773189329517,0.00022001,69906.0,69899.0,0.07153178]
[1773189331706,0.0004,69900.0,69899.0,0.07153178]
[1773189331925,0.04404324,69912.0,69899.0,0.07153178]
[1773189331926,0.00039481,69920.0,69901.0,0.05800893]
[1773189332114,0.00039481,69920.0,69902.0,0.04057821]
[1773189332317,0.04443805,69920.0,69902.0,0.04057821]
[1773189332496,0.04443805,69920.0,69901.0,0.05800893]
[1773189332497,0.04587805,69920.0,69903.0,0.00144]
[1773189332702,0.11738862,69920.0,69903.0,0.04201821]
[1773189333839,0.11738862,69920.0,69904.0,0.07152666]
[1773189334252,0.04404324,69917.0,69904.0,0.07152666]
[1773189335932,0.04404324,69917.0,69895.0,0.11210999]
[1773189335933,0.04404324,69915.0,69896.0,0.07297485]
[1773189336342,0.04404324,69913.0,69896.0,0.07297485]
[1773189338551,0.07151848,69912.0,69896.0,0.07297485]
[1773189338757,0.04404324,69911.0,69896.0,0.07297485]
[1773189341644,0.07152052,69910.0,69896.0,0.07297485]
[1773189341826,0.04394311,69909.0,69896.0,0.07297485]
[1773189342641,0.04394311,69909.0,69896.0,0.07317485]
[1773189345326,0.07151848,69912.0,69897.0,0.04057821]
[1773189345529,0.04426325,69918.0,69897.0,0.04057821]
[1773189345530,0.07151336,69917.0,69897.0,0.04057821]
[1773189345703,0.00144,69913.0,69897.0,0.04057821]
[1773189346122,0.11577602,69918.0,69897.0,0.04057821]
[1773189346298,0.11577591,69918.0,69897.0,0.04057821]
[1773189346498,0.00144,69917.0,69897.0,0.04057821]
[1773189346701,0.00022001,69918.0,69897.0,0.04057821]
[1773189346924,0.00166001,69918.0,69897.0,0.04057821]
[1773189347123,0.07317254,69918.0,69897.0,0.04057821]
[1773189347334,0.00166001,69918.0,69897.0,0.04057821]
[1773189347601,0.00166001,69918.0,69899.0,0.04057821]
[1773189347803,0.0731725,69918.0,69899.0,0.04057821]
[1773189347985,0.0717325,69918.0,69899.0,0.04057821]
[1773189348188,0.0731725,69918.0,69899.0,0.04057821]
[1773189348499,0.0717325,69918.0,69899.0,0.04057821]
[1773189348709,0.0731725,69918.0,69899.0,0.04057821]
[1773189349132,0.00166001,69918.0,69899.0,0.04057821]
[1773189349337,0.00022001,69922.0,69898.0,0.0715328]
[1773189349338,0.0717266,69924.0,69902.0,0.03970878]
[1773189349537,0.0717266,69924.0,69910.0,0.05455219]
[1773189349736,0.0717266,69924.0,69911.0,0.04223228]
[1773189350780,0.0731666,69924.0,69911.0,0.04223228]
[1773189351397,0.0004,69917.0,69911.0,0.04223228]
[1773189351986,0.0004,69917.0,69911.0,0.0715195]
[1773189354611,0.00022001,69924.0,69912.0,0.04223228]
[1773189355644,0.00022001,69921.0,69912.0,0.04223228]
[1773189355843,0.00022001,69924.0,69912.0,0.04223228]
[1773189356047,0.00022001,69926.0,69912.0,0.04223228]
[1773189356509,0.00022001,69926.0,69914.0,0.04223228]
[1773189356738,0.00022001,69926.0,69916.0,0.04223228]
[1773189360024,0.00584001,69928.0,69917.0,0.07151336]
[1773189360383,0.04314992,69927.0,69916.0,0.00144]
[1773189360593,0.04314992,69926.0,69915.0,0.07151336]
[1773189360824,0.04314992,69926.0,69914.0,0.07295557]
[1773189361252,0.00144,69925.0,69914.0,0.07151557]
[1773189363172,0.04314992,69924.0,69914.0,0.07151557]
[1773189363966,0.04314992,69924.0,69900.0,0.00023]
[1773189363967,0.04314992,69923.0,69900.0,0.00023]
[1773189364314,0.04314992,69919.0,69900.0,0.07187227]
[1773189364657,0.04314992,69917.0,69900.0,0.00034198]
[1773189364889,0.04314992,69915.0,69900.0,0.00034198]
[1773189365092,0.04314992,69915.0,69900.0,0.07187239]
[1773189365890,0.00144,69914.0,69901.0,0.04223228]
[1773189366223,0.04458992,69914.0,69900.0,0.07187239]
[1773189366976,0.11610737,69913.0,69900.0,0.07187239]
[1773189367179,0.04314992,69912.0,69900.0,0.07227239]
[1773189369103,0.0715195,69911.0,69900.0,0.07227239]
[1773189372841,0.11610894,69912.0,69900.0,0.12682458]
[1773189373021,0.00144,69915.0,69901.0,0.04223228]
[1773189373223,0.00144,69918.0,69905.0,0.05455219]
[1773189373439,0.00022001,69921.0,69909.0,0.04223228]
[1773189374362,0.0715049,69926.0,69909.0,0.04223228]
[1773189374559,0.0729449,69926.0,69909.0,0.04223228]
[1773189374764,0.0729449,69926.0,69910.0,0.07152052]
[1773189375082,0.11609482,69926.0,69911.0,0.04223228]
[1773189375312,0.04314992,69925.0,69912.0,0.00144]
[1773189376089,0.0729449,69926.0,69913.0,0.04223228]
[1773189376291,0.0016085,69930.0,69913.0,0.04223228]
[1773189376999,0.0016085,69930.0,69915.0,0.04223228]
[1773189377430,0.04475842,69930.0,69915.0,0.04223228]
[1773189377947,0.00022001,69926.0,69915.0,0.04223228]
[1773189378288,0.00022001,69926.0,69914.0,0.07151643]
[1773189378530,0.04314992,69925.0,69915.0,0.00144]
[1773189378966,0.00022001,69926.0,69916.0,0.07151438]
[1773189379165,0.00022001,69926.0,69917.0,0.04223228]
[1773189379341,0.00022001,69926.0,69916.0,0.07151438]
[1773189380491,0.00022001,69926.0,69916.0,0.07295438]
[1773189380881,0.00022001,69926.0,69916.0,0.07151438]
[1773189381085,0.11315505,69925.0,69916.0,0.07295392]
[1773189382576,0.07150518,69925.0,69916.0,0.00144]
[1773189382787,0.04164987,69924.0,69915.0,0.00144]
[1773189383230,0.04164987,69924.0,69912.0,0.00144]
[1773189383436,0.04164987,69924.0,69906.0,0.07152364]
[1773189383630,0.04164987,69924.0,69909.0,0.00144]
[1773189384042,0.04164987,69924.0,69906.0,0.07296364]
[1773189384494,0.04164987,69922.0,69906.0,0.07296364]
[1773189384768,0.04164987,69922.0,69905.0,0.07152554]
[1773189384769,0.07150927,69921.0,69904.0,0.0002]
[1773189384906,0.04164987,69920.0,69906.0,0.00144]
[1773189385791,0.04164987,69920.0,69904.0,0.0002]
[1773189385949,0.04164987,69920.0,69905.0,0.00144]
[1773189386572,0.04164987,69920.0,69906.0,0.00144]
[1773189387035,0.04164987,69920.0,69904.0,0.0002]
[1773189387211,0.04164987,69918.0,69905.0,0.00144]
[1773189387402,0.04164987,69918.0,69913.0,0.0002]
[1773189388599,0.04164987,69918.0,69904.0,0.0002]
[1773189389072,0.07151336,69917.0,69904.0,0.0002]
[1773189389479,0.04164987,69916.0,69904.0,0.0002]
[1773189390077,0.04164987,69916.0,69904.0,0.00164]
[1773189391859,0.07151541,69915.0,69905.0,0.07152564]
[1773189392482,0.04164987,69916.0,69905.0,0.07152564]
[1773189392636,0.11316432,69916.0,69905.0,0.07152564]
[1773189393034,0.07172667,69924.0,69905.0,0.07152564]
[1773189393238,0.0001685,69930.0,69915.0,0.04299911]
[1773189393494,0.0001685,69930.0,69916.0,0.04443911]
[1773189393639,0.04164987,69929.0,69917.0,0.00144]
[1773189394085,0.04164987,69929.0,69918.0,0.07151234]
[1773189395704,0.07150211,69928.0,69914.0,0.07151643]
[1773189395954,0.07150211,69928.0,69915.0,0.00144]
[1773189395955,0.11315198,69928.0,69915.0,0.00144]
[1773189396192,0.07150211,69929.0,69916.0,0.07171438]
[1773189396317,0.07150211,69929.0,69917.0,0.04299911]
[1773189396519,0.00022001,69929.0,69917.0,0.04299911]
[1773189396920,0.00144,69928.0,69917.0,0.04299911]
[1773189397245,0.00022001,69929.0,69917.0,0.04299911]
[1773189397448,0.00166001,69929.0,69917.0,0.04299911]
[1773189398242,0.07150211,69928.0,69917.0,0.11451212]
[1773189399370,0.07166501,69928.0,69917.0,0.11451212]
[1773189400792,0.00034841,69932.0,69918.0,0.04299911]
[1773189401140,0.0015684,69939.0,69918.0,0.04299911]
[1773189401141,0.0001284,69939.0,69918.0,0.04299911]
[1773189401448,0.00144,69938.0,69918.0,0.04299911]
[1773189402281,0.04308987,69938.0,69918.0,0.04299911]
[1773189403169,0.0001284,69939.0,69920.0,0.04299911]
[1773189403775,0.0001284,69939.0,69921.0,0.04299911]
[1773189403980,0.0001284,69939.0,69923.0,0.04299911]
[1773189404391,0.00144,69945.0,69922.0,0.00144]
[1773189404392,0.00144,69949.0,69931.0,0.04299911]
[1773189404618,0.00144,69949.0,69930.0,0.09540057]
[1773189404619,0.00045001,69950.0,69933.0,0.04299911]
[1773189404966,0.00056234,69950.0,69933.0,0.04299911]
[1773189405249,0.04221221,69950.0,69934.0,0.11449509]
[1773189405374,0.04221221,69950.0,69935.0,0.04299911]
[1773189405929,0.00562,69956.0,69935.0,0.04299911]
[1773189406154,0.00562,69956.0,69935.0,0.04311144]
[1773189406282,0.00562,69956.0,69935.0,0.04327104]
[1773189407107,0.00562,69956.0,69936.0,0.07149393]
[1773189407314,0.00562,69956.0,69937.0,0.04299911]
[1773189407505,0.00562,69956.0,69939.0,0.04299911]
[1773189408939,0.04559056,69956.0,69939.0,0.04399911]
[1773189409328,0.04559056,69956.0,69941.0,0.04072437]
[1773189410214,0.04559056,69956.0,69947.0,0.00048]
[1773189410555,0.04559056,69956.0,69948.0,0.00144]
[1773189412850,0.04559056,69956.0,69949.0,0.07148065]
[1773189413053,0.04581057,69956.0,69949.0,0.07148065]
[1773189414220,0.00584001,69956.0,69949.0,0.07148065]
[1773189415964,0.0004,69952.0,69949.0,0.07148065]
[1773189416280,0.0004,69952.0,69949.0,0.11132828]
[1773189416716,0.00584001,69956.0,69949.0,0.11132828]
[1773189418483,0.00584001,69956.0,69949.0,0.07148065]
[1773189419615,0.01427964,69963.0,69950.0,0.03984763]
[1773189420466,0.05448719,69963.0,69950.0,0.03984763]
[1773189420674,0.00022001,69956.0,69950.0,0.03984763]
[1773189421203,0.00022001,69956.0,69951.0,0.0714786]
[1773189422294,0.01283964,69963.0,69952.0,0.03984763]
[1773189423262,0.01283964,69963.0,69953.0,0.11132419]
[1773189423415,0.01283964,69963.0,69954.0,0.00144]
[1773189424312,0.01283964,69963.0,69954.0,0.04128763]
[1773189425140,0.01283964,69963.0,69955.0,0.07147451]
[1773189425141,0.00022001,69963.0,69955.0,0.07147451]
[1773189425453,0.00022001,69963.0,69956.0,0.03984763]
[1773189427247,0.00022001,69963.0,69957.0,0.07147247]
[1773189429282,0.00022001,69963.0,69956.0,0.07147247]
[1773189430300,0.04020755,69962.0,69951.0,0.0729176]
[1773189431125,0.00022001,69963.0,69952.0,0.03984763]
[1773189431339,0.00022001,69963.0,69954.0,0.03984763]
[1773189431797,0.00022001,69970.0,69957.0,0.05449259]
[1773189432035,0.0004744,69975.0,69962.0,0.03984763]
[1773189432205,0.0004744,69975.0,69966.0,0.03984763]
[1773189432206,0.00037421,69975.0,69966.0,0.03984763]
[1773189432401,0.00562,69984.0,69968.0,0.03984763]
[1773189432402,0.00144,69982.0,69968.0,0.03984763]
[1773189432726,0.00144,69982.0,69967.0,0.00144]
[1773189432727,0.00144,69982.0,69971.0,0.03984763]
[1773189432728,0.00011222,69982.0,69971.0,0.03984763]
[1773189433501,0.00011222,69982.0,69973.0,0.03984763]
[1773189433696,0.00011222,69982.0,69975.0,0.03984763]
[1773189434300,0.000202,69986.0,69977.0,0.03984763]
[1773189434704,0.00166001,69991.0,69977.0,0.03984763]
[1773189434705,0.00022001,69991.0,69977.0,0.03984763]
[1773189434904,0.000202,69997.0,69981.0,0.03984763]
[1773189435190,0.000202,69997.0,69987.0,0.05449259]
[1773189435430,0.000202,69997.0,69987.0,0.00104]
[1773189435590,0.000202,69997.0,69988.0,0.07144081]
[1773189435790,0.000202,69997.0,69989.0,0.03984763]
[1773189436220,0.04184955,70008.0,69989.0,0.03984763]
[1773189436417,0.04040955,70008.0,69989.0,0.03984763]
[1773189436696,0.000202,70008.0,69989.0,0.03984763]
[1773189437411,0.000202,70008.0,69991.0,0.07143775]
[1773189437655,0.04582755,70012.0,69991.0,0.07143775]
[1773189437656,0.04726755,70012.0,69992.0,0.03984763]
[1773189437835,0.04726755,70012.0,69994.0,0.03984763]
[1773189438458,0.00562,70012.0,69994.0,0.03984763]
[1773189438685,0.00562,70012.0,69996.0,0.03984763]
[1773189439692,0.00562,70012.0,69998.0,0.04219611]
[1773189439922,0.00562,70012.0,69999.0,0.04363611]
[1773189440815,0.00022001,70012.0,69999.0,0.04363611]
[1773189441672,0.00022001,70012.0,69987.0,0.11363794]
[1773189441673,0.03863264,70010.0,69987.0,0.11363794]
[1773189441792,0.03863264,70010.0,69988.0,0.00144]
[1773189442005,0.07307735,70012.0,69990.0,0.16329508]
[1773189442006,0.00022001,70012.0,69990.0,0.16329508]
[1773189442209,0.00022001,70012.0,69992.0,0.04219611]
[1773189442843,0.03863264,70011.0,69992.0,0.04219611]
[1773189444027,0.00022001,70012.0,69994.0,0.04219611]
[1773189444228,0.00022001,70012.0,69996.0,0.04219611]
[1773189445237,0.01202854,70017.0,70001.0,0.04219611]
[1773189445438,0.01202854,70017.0,70003.0,0.04219611]
[1773189445641,0.01202854,70017.0,70005.0,0.04219611]
[1773189445875,0.01202854,70017.0,70006.0,0.00144]
[1773189446574,0.01214074,70017.0,70007.0,0.07142142]
[1773189446880,0.15548835,70022.0,70008.0,0.04219611]
[1773189447115,0.03863264,70022.0,70008.0,0.04230831]
[1773189447286,0.00144,70024.0,70008.0,0.04230831]
[1773189448280,0.07284413,70024.0,70008.0,0.04230831]
[1773189448513,0.0714073,70021.0,70008.0,0.0001122]
[1773189448683,0.11003807,70023.0,70008.0,0.0001122]
[1773189449975,0.07140634,70022.0,70008.0,0.0001122]
[1773189450181,0.07162848,70020.0,70008.0,0.0001122]
[1773189450377,0.00022001,70020.0,70008.0,0.0001122]
[1773189450620,0.03885265,70020.0,70008.0,0.0001122]
[1773189451290,0.00022001,70020.0,70008.0,0.0001122]
[1773189451859,0.00022001,70020.0,70008.0,0.04230831]
[1773189453304,0.00023,70025.0,70008.0,0.04230831]
[1773189453505,0.0003016,70030.0,70011.0,0.04219611]
[1773189453707,0.0003016,70030.0,70010.0,0.16329508]
[1773189453708,0.0003016,70030.0,70013.0,0.04219611]
[1773189454319,0.03863264,70035.0,70013.0,0.04219611]